[Event "Early-Titled-Tuesday-Blitz-March-05-2024"]
[Site "Chess.com"]
[Date "2024.03.05"]
[Round "7"]
[White "alexrustemov"]
[Black "Pingah9"]
[Result "1-0"]
[WhiteElo "2809"]
[BlackElo "2592"]
[TimeControl "180+1"]
[EndTime "9:20:41 PST"]
[Termination "alexrustemov won on time"]

1. d4 {[%clk 0:03:00.9]} 1... g6 {[%clk 0:03:00.7]} 2. c4 {[%clk 0:03:01.1]}
2... Bg7 {[%clk 0:03:01]} 3. Nf3 {[%clk 0:03:01.5]} 3... f5 {[%clk 0:02:59.8]}
4. Nc3 {[%clk 0:02:59.6]} 4... Nf6 {[%clk 0:03:00]} 5. g3 {[%clk 0:02:59.8]}
5... d6 {[%clk 0:02:59.9]} 6. Bg2 {[%clk 0:03:00.2]} 6... O-O {[%clk 0:03:00.1]}
7. O-O {[%clk 0:03:00.7]} 7... Nc6 {[%clk 0:03:00.5]} 8. d5 {[%clk 0:02:59.9]}
8... Ne5 {[%clk 0:03:00.8]} 9. Nxe5 {[%clk 0:02:59.2]} 9... dxe5 {[%clk
0:03:01.7]} 10. Qb3 {[%clk 0:02:59.6]} 10... Kh8 {[%clk 0:03:01.4]} 11. Rd1
{[%clk 0:02:59.3]} 11... h6 {[%clk 0:03:01.6]} 12. c5 {[%clk 0:02:59.4]} 12...
g5 {[%clk 0:02:58.7]} 13. Bd2 {[%clk 0:02:59.7]} 13... f4 {[%clk 0:02:52.5]} 14.
Be1 {[%clk 0:02:49.9]} 14... Rb8 {[%clk 0:02:52.3]} 15. Rac1 {[%clk 0:02:47.6]}
15... Bf5 {[%clk 0:02:44.5]} 16. Qc4 {[%clk 0:02:44.6]} 16... a6 {[%clk
0:02:40.7]} 17. b4 {[%clk 0:02:43.2]} 17... Qe8 {[%clk 0:02:40.7]} 18. Ne4
{[%clk 0:02:33.1]} 18... Bxe4 {[%clk 0:02:05.7]} 19. Bxe4 {[%clk 0:02:32.1]}
19... Qh5 {[%clk 0:02:05.8]} 20. Bf3 {[%clk 0:02:20]} 20... Qh3 {[%clk
0:01:36.3]} 21. Bc3 {[%clk 0:02:13.3]} 21... Ng4 {[%clk 0:01:10.4]} 22. Bxg4
{[%clk 0:02:10.4]} 22... Qxg4 {[%clk 0:01:11.3]} 23. Qe4 {[%clk 0:02:08.6]}
23... Qf5 {[%clk 0:01:07.9]} 24. Qxf5 {[%clk 0:01:58.9]} 24... Rxf5 {[%clk
0:01:08.8]} 25. g4 {[%clk 0:01:28.2]} 25... Rf7 {[%clk 0:01:04.3]} 26. f3 {[%clk
0:01:24.4]} 26... Rd8 {[%clk 0:01:02.3]} 27. Kf2 {[%clk 0:01:20.3]} 27... Kh7
{[%clk 0:01:00.4]} 28. e4 {[%clk 0:01:17]} 28... fxe3+ {[%clk 0:00:57.4]} 29.
Kxe3 {[%clk 0:01:17.4]} 29... Rf4 {[%clk 0:00:56.5]} 30. a3 {[%clk 0:00:58]}
30... Kg6 {[%clk 0:00:55.5]} 31. h3 {[%clk 0:00:57.8]} 31... Rdf8 {[%clk
0:00:55.5]} 32. Rf1 {[%clk 0:00:57.2]} 32... Rc4 {[%clk 0:00:53.9]} 33. Bb2
{[%clk 0:00:52.4]} 33... Rcf4 {[%clk 0:00:47]} 34. Rc2 {[%clk 0:00:37.1]} 34...
e4 {[%clk 0:00:42]} 35. Bxg7 {[%clk 0:00:35]} 35... Kxg7 {[%clk 0:00:42]} 36.
Rcf2 {[%clk 0:00:34.8]} 36... exf3 {[%clk 0:00:34.2]} 37. Rxf3 {[%clk
0:00:35.7]} 37... Rxf3+ {[%clk 0:00:34.1]} 38. Rxf3 {[%clk 0:00:36.2]} 38... Ra8
{[%clk 0:00:19.4]} 39. Ke4 {[%clk 0:00:35.5]} 39... a5 {[%clk 0:00:19.4]} 40. b5
{[%clk 0:00:34.8]} 40... a4 {[%clk 0:00:19.8]} 41. Kd4 {[%clk 0:00:29.6]} 41...
Ra5 {[%clk 0:00:19.3]} 42. Kc4 {[%clk 0:00:29.6]} 42... Ra8 {[%clk 0:00:20]} 43.
Kb4 {[%clk 0:00:24.1]} 43... Kg6 {[%clk 0:00:18.4]} 44. Re3 {[%clk 0:00:23.5]}
44... Kf6 {[%clk 0:00:18.4]} 45. Re6+ {[%clk 0:00:23.3]} 45... Kf7 {[%clk
0:00:18.3]} 46. Rxh6 {[%clk 0:00:22.7]} 46... Rd8 {[%clk 0:00:18.8]} 47. Kc4
{[%clk 0:00:21.5]} 47... Rb8 {[%clk 0:00:14.5]} 48. b6 {[%clk 0:00:21.3]} 48...
cxb6 {[%clk 0:00:13.9]} 49. Rxb6 {[%clk 0:00:21.3]} 49... Rh8 {[%clk 0:00:12]}
50. Rxb7 {[%clk 0:00:21]} 50... Rxh3 {[%clk 0:00:12.7]} 51. d6 {[%clk
0:00:21.2]} 51... Rxa3 {[%clk 0:00:11]} 52. Rxe7+ {[%clk 0:00:20.6]} 52... Kf6
{[%clk 0:00:11.4]} 53. c6 {[%clk 0:00:15.8]} 53... Ra1 {[%clk 0:00:11.3]} 54. c7
{[%clk 0:00:16.1]} 54... a3 {[%clk 0:00:10.2]} 55. Kd5 {[%clk 0:00:12.6]} 55...
Rc1 {[%clk 0:00:07.6]} 56. Re2 {[%clk 0:00:08.2]} 56... Rc3 {[%clk 0:00:01.5]}
57. d7 {[%clk 0:00:07]} 1-0

[Event "Early-Titled-Tuesday-Blitz-March-05-2024"]
[Site "Chess.com"]
[Date "2024.03.05"]
[Round "7"]
[White "Actuary44"]
[Black "sokidze"]
[Result "0-1"]
[WhiteElo "2543"]
[BlackElo "2778"]
[TimeControl "180+1"]
[EndTime "9:20:48 PST"]
[Termination "sokidze won by resignation"]

1. e4 {[%clk 0:03:00.9]} 1... e5 {[%clk 0:02:59.6]} 2. d4 {[%clk 0:03:00.5]}
2... exd4 {[%clk 0:02:59.1]} 3. c3 {[%clk 0:03:01]} 3... d5 {[%clk 0:02:42.6]}
4. exd5 {[%clk 0:03:00.7]} 4... Qxd5 {[%clk 0:02:42.6]} 5. cxd4 {[%clk
0:03:00.8]} 5... Nc6 {[%clk 0:02:41.1]} 6. Nf3 {[%clk 0:02:58.9]} 6... Nf6
{[%clk 0:02:37.9]} 7. Be2 {[%clk 0:02:55.6]} 7... Bb4+ {[%clk 0:02:34.7]} 8. Nc3
{[%clk 0:02:55.2]} 8... O-O {[%clk 0:02:34.8]} 9. O-O {[%clk 0:02:55]} 9... Qd8
{[%clk 0:02:35]} 10. Bg5 {[%clk 0:02:53.5]} 10... h6 {[%clk 0:02:32.9]} 11. Bh4
{[%clk 0:02:53.7]} 11... Be7 {[%clk 0:02:32.2]} 12. h3 {[%clk 0:02:52.1]} 12...
Nh5 {[%clk 0:02:27.4]} 13. Bxe7 {[%clk 0:02:47.3]} 13... Nxe7 {[%clk 0:02:28.3]}
14. Ne5 {[%clk 0:02:38.3]} 14... Nf4 {[%clk 0:02:27.7]} 15. Bf3 {[%clk
0:02:38.4]} 15... c6 {[%clk 0:02:27.6]} 16. Qd2 {[%clk 0:02:33.9]} 16... Ned5
{[%clk 0:02:12.5]} 17. Nxd5 {[%clk 0:02:32.8]} 17... Nxd5 {[%clk 0:02:12.8]} 18.
Rfe1 {[%clk 0:02:30.8]} 18... Be6 {[%clk 0:02:10]} 19. Bxd5 {[%clk 0:01:52.5]}
19... Qxd5 {[%clk 0:02:08.6]} 20. b3 {[%clk 0:01:48.9]} 20... Rfd8 {[%clk
0:02:07]} 21. Rad1 {[%clk 0:01:48.3]} 21... Qb5 {[%clk 0:01:55.8]} 22. Qf4
{[%clk 0:01:46.6]} 22... Qb4 {[%clk 0:01:28.5]} 23. Re3 {[%clk 0:01:44.2]} 23...
Rf8 {[%clk 0:01:05]} 24. Rg3 {[%clk 0:01:38.3]} 24... Kh8 {[%clk 0:01:05.1]} 25.
Ng4 {[%clk 0:01:11.8]} 25... Bxg4 {[%clk 0:00:53.5]} 26. Qxg4 {[%clk 0:01:12.7]}
26... Rg8 {[%clk 0:00:47.1]} 27. Qf5 {[%clk 0:00:45]} 27... Qe7 {[%clk
0:00:35.4]} 28. Rdd3 {[%clk 0:00:34.5]} 28... Rad8 {[%clk 0:00:33]} 29. Rde3
{[%clk 0:00:32.5]} 29... Qd7 {[%clk 0:00:31.4]} 30. Qf4 {[%clk 0:00:24.9]} 30...
Rge8 {[%clk 0:00:19.5]} 31. Ref3 {[%clk 0:00:19.3]} 31... f6 {[%clk 0:00:11.2]}
32. Rg6 {[%clk 0:00:13.8]} 32... Qxd4 {[%clk 0:00:10.4]} 33. Rxh6+ {[%clk
0:00:12.5]} 33... Kg8 {[%clk 0:00:09.1]} 34. Qg3 {[%clk 0:00:05.8]} 34... Re1+
{[%clk 0:00:06]} 35. Kh2 {[%clk 0:00:05.8]} 35... Qa1 {[%clk 0:00:05.2]} 36. Qg4
{[%clk 0:00:05.1]} 36... Rh1+ {[%clk 0:00:05.3]} 37. Kg3 {[%clk 0:00:05.6]}
37... Qe5+ {[%clk 0:00:05.7]} 38. Rf4 {[%clk 0:00:05.6]} 38... Qg5 {[%clk
0:00:03.4]} 39. Rg6 {[%clk 0:00:03.9]} 39... Qxg4+ {[%clk 0:00:03.6]} 40. Rfxg4
{[%clk 0:00:04.6]} 40... Rd7 {[%clk 0:00:02.8]} 41. Rxf6 {[%clk 0:00:04.3]}
41... Rhd1 {[%clk 0:00:02.5]} 42. Rff4 {[%clk 0:00:03.7]} 42... R1d2 {[%clk
0:00:02.9]} 43. a4 {[%clk 0:00:02.8]} 43... R2d3+ {[%clk 0:00:02.5]} 44. Rf3
{[%clk 0:00:02.4]} 44... Rxf3+ {[%clk 0:00:03.2]} 45. Kxf3 {[%clk 0:00:03.3]}
45... Rd3+ {[%clk 0:00:03.3]} 46. Ke2 {[%clk 0:00:03.4]} 46... Rxb3 {[%clk
0:00:04.2]} 47. Rd4 {[%clk 0:00:03.5]} 47... b5 {[%clk 0:00:04]} 48. axb5 {[%clk
0:00:03.3]} 48... cxb5 {[%clk 0:00:04.9]} 49. f4 {[%clk 0:00:01.4]} 49... a5
{[%clk 0:00:05.1]} 50. g4 {[%clk 0:00:01.6]} 50... a4 {[%clk 0:00:05.7]} 51. Kd2
{[%clk 0:00:02.2]} 51... a3 {[%clk 0:00:05.3]} 52. Kc2 {[%clk 0:00:02.5]} 52...
Rb2+ {[%clk 0:00:03.3]} 53. Kc1 {[%clk 0:00:02.5]} 53... b4 {[%clk 0:00:03.8]}
54. f5 {[%clk 0:00:02.5]} 54... Kf7 {[%clk 0:00:02.2]} 55. g5 {[%clk 0:00:02.4]}
55... Rb3 {[%clk 0:00:02.8]} 56. Rd7+ {[%clk 0:00:02]} 56... Ke8 {[%clk
0:00:03.4]} 57. Kc2 {[%clk 0:00:02.3]} 57... Rc3+ {[%clk 0:00:02.2]} 58. Kd2
{[%clk 0:00:03]} 58... Kxd7 {[%clk 0:00:03.1]} 59. f6 {[%clk 0:00:03.5]} 59...
gxf6 {[%clk 0:00:03.6]} 60. g6 {[%clk 0:00:04.4]} 60... Ke7 {[%clk 0:00:03.8]}
61. g7 {[%clk 0:00:05.3]} 61... Kf7 {[%clk 0:00:04.3]} 62. h4 {[%clk 0:00:06.1]}
62... Kxg7 {[%clk 0:00:04.9]} 63. h5 {[%clk 0:00:07]} 63... Kh6 {[%clk
0:00:05.6]} 0-1

[Event "Early-Titled-Tuesday-Blitz-March-05-2024"]
[Site "Chess.com"]
[Date "2024.03.05"]
[Round "7"]
[White "bylavochka"]
[Black "Quattroporte300"]
[Result "1-0"]
[WhiteElo "2325"]
[BlackElo "2438"]
[TimeControl "180+1"]
[EndTime "9:20:50 PST"]
[Termination "bylavochka won by checkmate"]

1. e4 {[%clk 0:03:00.9]} 1... c5 {[%clk 0:03:00.2]} 2. Nf3 {[%clk 0:03:01.1]}
2... d6 {[%clk 0:03:00.9]} 3. d4 {[%clk 0:03:01.8]} 3... cxd4 {[%clk 0:03:01.6]}
4. Nxd4 {[%clk 0:03:02.7]} 4... Nf6 {[%clk 0:03:02.1]} 5. Nc3 {[%clk 0:03:02.8]}
5... a6 {[%clk 0:03:02.8]} 6. f3 {[%clk 0:03:02.7]} 6... e5 {[%clk 0:03:02.1]}
7. Nb3 {[%clk 0:03:02.5]} 7... Be7 {[%clk 0:03:02.3]} 8. Be3 {[%clk 0:03:03.1]}
8... Be6 {[%clk 0:03:00.8]} 9. Qd2 {[%clk 0:03:03.5]} 9... h5 {[%clk 0:03:00.9]}
10. O-O-O {[%clk 0:03:03.2]} 10... Nbd7 {[%clk 0:03:00.6]} 11. Qf2 {[%clk
0:03:03.9]} 11... b5 {[%clk 0:02:58.4]} 12. Kb1 {[%clk 0:02:52.8]} 12... Rc8
{[%clk 0:02:54.7]} 13. g3 {[%clk 0:02:47.7]} 13... Qc7 {[%clk 0:02:53]} 14. h4
{[%clk 0:02:43.8]} 14... Nb6 {[%clk 0:02:49.4]} 15. Bxb6 {[%clk 0:02:34.1]}
15... Qb8 {[%clk 0:02:45.5]} 16. Be3 {[%clk 0:02:31.7]} 16... g6 {[%clk
0:02:38.9]} 17. Bh3 {[%clk 0:02:30.6]} 17... O-O {[%clk 0:02:36.1]} 18. Bxe6
{[%clk 0:02:27.5]} 18... fxe6 {[%clk 0:02:35.9]} 19. Qe2 {[%clk 0:02:25]} 19...
Qb7 {[%clk 0:02:32.1]} 20. Bg5 {[%clk 0:02:22.3]} 20... b4 {[%clk 0:02:19.5]}
21. Na4 {[%clk 0:01:59.6]} 21... Qc6 {[%clk 0:02:15.2]} 22. g4 {[%clk
0:01:41.2]} 22... Qxa4 {[%clk 0:01:54]} 23. gxh5 {[%clk 0:01:40.8]} 23... gxh5
{[%clk 0:01:47.8]} 24. Rhg1 {[%clk 0:01:40.6]} 24... Kh7 {[%clk 0:01:47.2]} 25.
f4 {[%clk 0:01:27.9]} 25... Qe8 {[%clk 0:01:46.5]} 26. fxe5 {[%clk 0:01:16]}
26... dxe5 {[%clk 0:01:42.7]} 27. Bxf6 {[%clk 0:01:06]} 27... Rxf6 {[%clk
0:01:37.5]} 28. Rd7 {[%clk 0:00:13.5]} 28... Rh6 {[%clk 0:01:23.9]} 29. Qg2
{[%clk 0:00:06.7]} 29... Qf7 {[%clk 0:01:22.9]} 30. Ra7 {[%clk 0:00:05.5]} 30...
Rf6 {[%clk 0:01:07.8]} 31. Nd2 {[%clk 0:00:05]} 31... Rf8 {[%clk 0:00:59.2]} 32.
b3 {[%clk 0:00:03.6]} 32... Kh8 {[%clk 0:00:53]} 33. Qg5 {[%clk 0:00:03.3]}
33... Rf1+ {[%clk 0:00:44.5]} 34. Rxf1 {[%clk 0:00:03.2]} 34... Qxf1+ {[%clk
0:00:43.2]} 35. Nxf1 {[%clk 0:00:03.4]} 35... Rxf1+ {[%clk 0:00:43.3]} 36. Qc1
{[%clk 0:00:02.6]} 36... Rxc1+ {[%clk 0:00:41.3]} 37. Kxc1 {[%clk 0:00:03.5]}
37... Bxh4 {[%clk 0:00:40.5]} 38. Rxa6 {[%clk 0:00:04.1]} 38... Kg7 {[%clk
0:00:36.8]} 39. Rxe6 {[%clk 0:00:03.7]} 39... Bf6 {[%clk 0:00:37.5]} 40. Kd1
{[%clk 0:00:03.5]} 40... Kf7 {[%clk 0:00:36.7]} 41. Rc6 {[%clk 0:00:03.5]} 41...
h4 {[%clk 0:00:37.2]} 42. Ke2 {[%clk 0:00:03.8]} 42... h3 {[%clk 0:00:26.9]} 43.
Kf3 {[%clk 0:00:04.1]} 43... Bh4 {[%clk 0:00:27.5]} 44. Rh6 {[%clk 0:00:03.6]}
44... Be1 {[%clk 0:00:25.5]} 45. Rxh3 {[%clk 0:00:03.5]} 45... Ke6 {[%clk
0:00:26.3]} 46. Rh1 {[%clk 0:00:03.5]} 46... Bc3 {[%clk 0:00:25.4]} 47. Rd1
{[%clk 0:00:04.4]} 47... Bd4 {[%clk 0:00:25.1]} 48. Ke2 {[%clk 0:00:05.3]} 48...
Kd6 {[%clk 0:00:25.6]} 49. Kd3 {[%clk 0:00:06.2]} 49... Kc5 {[%clk 0:00:26.2]}
50. Rf1 {[%clk 0:00:06.4]} 50... Bb2 {[%clk 0:00:25.4]} 51. Rf7 {[%clk
0:00:07.3]} 51... Kc6 {[%clk 0:00:24.6]} 52. Kc4 {[%clk 0:00:05.2]} 52... Bc3
{[%clk 0:00:20.9]} 53. Rf6+ {[%clk 0:00:05.9]} 53... Kd7 {[%clk 0:00:20.9]} 54.
Kd5 {[%clk 0:00:06.8]} 54... Ke7 {[%clk 0:00:19.6]} 55. Re6+ {[%clk 0:00:07.3]}
55... Kd7 {[%clk 0:00:20.3]} 56. Rxe5 {[%clk 0:00:08.2]} 56... Kc7 {[%clk
0:00:14.2]} 57. Re6 {[%clk 0:00:08.5]} 57... Kd7 {[%clk 0:00:14.8]} 58. Rc6
{[%clk 0:00:08.8]} 58... Bb2 {[%clk 0:00:13.9]} 59. Rc4 {[%clk 0:00:08.6]} 59...
Bc3 {[%clk 0:00:14.8]} 60. Rxc3 {[%clk 0:00:08.5]} 60... bxc3 {[%clk 0:00:15.1]}
61. a4 {[%clk 0:00:09.4]} 61... Kc7 {[%clk 0:00:15.3]} 62. e5 {[%clk 0:00:07.7]}
62... Kb6 {[%clk 0:00:15.9]} 63. e6 {[%clk 0:00:08]} 63... Ka5 {[%clk
0:00:14.5]} 64. e7 {[%clk 0:00:08.3]} 64... Kb4 {[%clk 0:00:15.2]} 65. e8=Q
{[%clk 0:00:06.2]} 65... Ka3 {[%clk 0:00:15.9]} 66. Qe5 {[%clk 0:00:06.3]} 66...
Kb2 {[%clk 0:00:16.6]} 67. Kc4 {[%clk 0:00:06.9]} 67... Kxc2 {[%clk 0:00:12.1]}
68. Qxc3+ {[%clk 0:00:07]} 68... Kb1 {[%clk 0:00:12.8]} 69. Qd2 {[%clk
0:00:06.4]} 69... Ka1 {[%clk 0:00:12.8]} 70. Kc3 {[%clk 0:00:07.1]} 70... Kb1
{[%clk 0:00:12.9]} 71. Qb2# {[%clk 0:00:07.9]} 1-0

[Event "Early-Titled-Tuesday-Blitz-March-05-2024"]
[Site "Chess.com"]
[Date "2024.03.05"]
[Round "7"]
[White "Eliwood44"]
[Black "Veganator13"]
[Result "1-0"]
[WhiteElo "2512"]
[BlackElo "2319"]
[TimeControl "180+1"]
[EndTime "9:20:51 PST"]
[Termination "Eliwood44 won by resignation"]

1. d4 {[%clk 0:03:00.9]} 1... g6 {[%clk 0:02:59.3]} 2. c4 {[%clk 0:02:56.7]}
2... Bg7 {[%clk 0:02:58.8]} 3. Nc3 {[%clk 0:02:57.3]} 3... c5 {[%clk 0:02:58.3]}
4. d5 {[%clk 0:02:56.7]} 4... d6 {[%clk 0:02:57.8]} 5. e4 {[%clk 0:02:56.5]}
5... Nf6 {[%clk 0:02:57.2]} 6. Bd3 {[%clk 0:02:56.3]} 6... O-O {[%clk
0:02:56.7]} 7. Nge2 {[%clk 0:02:56.1]} 7... e6 {[%clk 0:02:50.2]} 8. O-O {[%clk
0:02:55.3]} 8... exd5 {[%clk 0:02:38.7]} 9. exd5 {[%clk 0:02:56.2]} 9... a6
{[%clk 0:02:30.7]} 10. Bf4 {[%clk 0:02:49.1]} 10... Ng4 {[%clk 0:02:24.9]} 11.
h3 {[%clk 0:02:46.4]} 11... Ne5 {[%clk 0:02:24.6]} 12. Ng3 {[%clk 0:02:39]}
12... Nbd7 {[%clk 0:02:16.3]} 13. Re1 {[%clk 0:02:38.6]} 13... Nxd3 {[%clk
0:01:42.5]} 14. Qxd3 {[%clk 0:02:39.5]} 14... Ne5 {[%clk 0:01:42.6]} 15. Qf1
{[%clk 0:02:29.8]} 15... Qh4 {[%clk 0:01:40.6]} 16. Be3 {[%clk 0:02:24.1]} 16...
Nxc4 {[%clk 0:01:32.3]} 17. Nge4 {[%clk 0:02:03.5]} 17... Nxe3 {[%clk 0:01:31]}
18. Rxe3 {[%clk 0:02:04.4]} 18... Be5 {[%clk 0:01:30.1]} 19. Rae1 {[%clk
0:01:55.8]} 19... f5 {[%clk 0:01:28.9]} 20. Nd2 {[%clk 0:01:52.6]} 20... f4
{[%clk 0:01:20.5]} 21. Rf3 {[%clk 0:01:51.9]} 21... g5 {[%clk 0:01:18.7]} 22.
Nc4 {[%clk 0:01:51.3]} 22... g4 {[%clk 0:01:17.9]} 23. Nxe5 {[%clk 0:01:43.4]}
23... dxe5 {[%clk 0:01:16.7]} 24. Rd3 {[%clk 0:01:39.2]} 24... gxh3 {[%clk
0:01:12.6]} 25. gxh3 {[%clk 0:01:29.7]} 25... f3 {[%clk 0:01:11.6]} 26. Re4
{[%clk 0:01:20.3]} 26... Qg5+ {[%clk 0:00:45.6]} 27. Kh2 {[%clk 0:01:18.4]}
27... Bf5 {[%clk 0:00:43.3]} 28. Rxf3 {[%clk 0:01:10]} 28... Bxe4 {[%clk
0:00:42.7]} 29. Nxe4 {[%clk 0:00:49]} 29... Qh6 {[%clk 0:00:38]} 30. Rg3+ {[%clk
0:00:44.8]} 30... Kh8 {[%clk 0:00:37.7]} 31. Nxc5 {[%clk 0:00:36.2]} 31... Rf5
{[%clk 0:00:20]} 32. f3 {[%clk 0:00:22.7]} 32... Rg8 {[%clk 0:00:15.5]} 33.
Rxg8+ {[%clk 0:00:16.6]} 33... Kxg8 {[%clk 0:00:15.6]} 34. Ne4 {[%clk
0:00:12.3]} 34... Qf4+ {[%clk 0:00:13.7]} 35. Kg2 {[%clk 0:00:09.4]} 35... Rf7
{[%clk 0:00:14.2]} 36. Qc4 {[%clk 0:00:07.9]} 36... Rg7+ {[%clk 0:00:14.5]} 37.
Kf2 {[%clk 0:00:08.5]} 37... Qh2+ {[%clk 0:00:09.4]} 38. Ke3 {[%clk 0:00:06.6]}
38... Qg1+ {[%clk 0:00:09.6]} 39. Kd3 {[%clk 0:00:05.8]} 39... Qb1+ {[%clk
0:00:09.6]} 40. Kc3 {[%clk 0:00:04.7]} 40... Qc1+ {[%clk 0:00:09.6]} 41. Kb3
{[%clk 0:00:04.9]} 41... Qxc4+ {[%clk 0:00:08.9]} 42. Kxc4 {[%clk 0:00:05.8]}
42... Kf7 {[%clk 0:00:09.2]} 43. Kc5 {[%clk 0:00:05.2]} 43... Ke7 {[%clk
0:00:09.8]} 44. d6+ {[%clk 0:00:05.2]} 44... Ke6 {[%clk 0:00:10.1]} 45. Kb6
{[%clk 0:00:05.6]} 45... Kd5 {[%clk 0:00:06.4]} 46. b3 {[%clk 0:00:04.6]} 46...
Rf7 {[%clk 0:00:06.8]} 47. a4 {[%clk 0:00:02.3]} 47... Rf5 {[%clk 0:00:07.2]}
48. d7 {[%clk 0:00:02.5]} 48... Rf8 {[%clk 0:00:04.8]} 49. Kc7 {[%clk
0:00:02.7]} 49... Kd4 {[%clk 0:00:04.9]} 50. d8=Q+ {[%clk 0:00:02.5]} 50... Rxd8
{[%clk 0:00:05.7]} 51. Kxd8 {[%clk 0:00:03.4]} 51... b5 {[%clk 0:00:06.6]} 52.
axb5 {[%clk 0:00:03.1]} 52... axb5 {[%clk 0:00:06.1]} 53. Kc7 {[%clk 0:00:03.7]}
53... Ke3 {[%clk 0:00:06.1]} 54. Kb6 {[%clk 0:00:03.6]} 54... Kxf3 {[%clk
0:00:07]} 55. Ng5+ {[%clk 0:00:02.9]} 55... Kf4 {[%clk 0:00:06.3]} 56. Nxh7
{[%clk 0:00:03]} 56... b4 {[%clk 0:00:07.2]} 57. Nf6 {[%clk 0:00:02.9]} 57...
Kg3 {[%clk 0:00:06.5]} 58. Kb5 {[%clk 0:00:02.2]} 58... Kxh3 {[%clk 0:00:07]}
59. Kxb4 {[%clk 0:00:02.6]} 59... Kg3 {[%clk 0:00:07.9]} 60. Kc5 {[%clk
0:00:03]} 60... Kf4 {[%clk 0:00:08.8]} 61. Kd5 {[%clk 0:00:03.3]} 1-0

[Event "Early-Titled-Tuesday-Blitz-March-05-2024"]
[Site "Chess.com"]
[Date "2024.03.05"]
[Round "7"]
[White "jk13"]
[Black "nicolasbatista3"]
[Result "0-1"]
[WhiteElo "2683"]
[BlackElo "2500"]
[TimeControl "180+1"]
[EndTime "9:21:01 PST"]
[Termination "nicolasbatista3 won by resignation"]

1. e4 {[%clk 0:02:57.5]} 1... c6 {[%clk 0:03:00.3]} 2. Nc3 {[%clk 0:02:57.1]}
2... d5 {[%clk 0:03:01]} 3. Nf3 {[%clk 0:02:57.3]} 3... Bg4 {[%clk 0:02:58.3]}
4. h3 {[%clk 0:02:56.4]} 4... Bxf3 {[%clk 0:02:58.4]} 5. Qxf3 {[%clk 0:02:56.4]}
5... e6 {[%clk 0:02:58.6]} 6. a3 {[%clk 0:02:57.1]} 6... Nf6 {[%clk 0:02:58.3]}
7. d3 {[%clk 0:02:57.8]} 7... Be7 {[%clk 0:02:56.7]} 8. g3 {[%clk 0:02:58.5]}
8... O-O {[%clk 0:02:56.6]} 9. Bg2 {[%clk 0:02:59.2]} 9... Nbd7 {[%clk
0:02:52.6]} 10. O-O {[%clk 0:02:59.8]} 10... dxe4 {[%clk 0:02:53]} 11. dxe4
{[%clk 0:02:59.3]} 11... Qb6 {[%clk 0:02:52.5]} 12. Qe2 {[%clk 0:02:59.3]} 12...
Rfd8 {[%clk 0:02:48.9]} 13. Kh1 {[%clk 0:02:58.7]} 13... e5 {[%clk 0:02:35.2]}
14. Rb1 {[%clk 0:02:54.6]} 14... Nf8 {[%clk 0:02:33.9]} 15. f4 {[%clk
0:02:51.1]} 15... exf4 {[%clk 0:02:31.1]} 16. gxf4 {[%clk 0:02:43]} 16... Ne6
{[%clk 0:02:21.1]} 17. e5 {[%clk 0:02:36.1]} 17... Nd4 {[%clk 0:02:20.4]} 18.
Qf2 {[%clk 0:02:27.9]} 18... Nh5 {[%clk 0:02:13.7]} 19. Be3 {[%clk 0:02:27.9]}
19... c5 {[%clk 0:02:08]} 20. Nd5 {[%clk 0:02:15.9]} 20... Rxd5 {[%clk
0:01:44.6]} 21. Bxd5 {[%clk 0:02:14.7]} 21... Qd8 {[%clk 0:01:44.7]} 22. Qg2
{[%clk 0:01:55.5]} 22... Nf5 {[%clk 0:01:25.4]} 23. Bf2 {[%clk 0:01:49.4]} 23...
Nxf4 {[%clk 0:01:21.6]} 24. Bxf7+ {[%clk 0:01:36.6]} 24... Kxf7 {[%clk
0:01:21.1]} 25. Qg4 {[%clk 0:01:12.1]} 25... Qd5+ {[%clk 0:01:11.8]} 26. Kh2
{[%clk 0:01:11.4]} 26... Qxe5 {[%clk 0:00:39.5]} 27. Bg3 {[%clk 0:00:48.7]}
27... Nxg3 {[%clk 0:00:39.3]} 28. Qxf4+ {[%clk 0:00:25.7]} 28... Qxf4 {[%clk
0:00:37.1]} 29. Rxf4+ {[%clk 0:00:26.6]} 29... Kg8 {[%clk 0:00:33.2]} 30. Rd1
{[%clk 0:00:20.6]} 30... Nh5 {[%clk 0:00:21.4]} 31. Re4 {[%clk 0:00:18.4]} 31...
Re8 {[%clk 0:00:19.7]} 32. Kg2 {[%clk 0:00:15.1]} 32... Nf6 {[%clk 0:00:18.4]}
33. Re5 {[%clk 0:00:14.9]} 33... Kf7 {[%clk 0:00:18.8]} 34. c4 {[%clk
0:00:13.7]} 34... b6 {[%clk 0:00:12.8]} 35. Kf3 {[%clk 0:00:13.3]} 35... Rd8
{[%clk 0:00:11.1]} 36. Rxd8 {[%clk 0:00:12.1]} 36... Bxd8 {[%clk 0:00:12]} 37.
b4 {[%clk 0:00:11.8]} 37... Bc7 {[%clk 0:00:10.8]} 38. Re2 {[%clk 0:00:10.5]}
38... cxb4 {[%clk 0:00:11.1]} 39. axb4 {[%clk 0:00:10.8]} 39... Bd6 {[%clk
0:00:11.7]} 40. Rb2 {[%clk 0:00:10]} 40... Nd7 {[%clk 0:00:11]} 41. Ke4 {[%clk
0:00:09.9]} 41... Ke6 {[%clk 0:00:10.2]} 42. Rb3 {[%clk 0:00:09.8]} 42... Ne5
{[%clk 0:00:10.1]} 43. c5 {[%clk 0:00:08.9]} 43... bxc5 {[%clk 0:00:09.8]} 44.
bxc5 {[%clk 0:00:09.5]} 44... Bxc5 {[%clk 0:00:09.6]} 45. Rb7 {[%clk 0:00:10.4]}
45... Nf7 {[%clk 0:00:07.5]} 46. Rc7 {[%clk 0:00:10.2]} 46... Bb6 {[%clk
0:00:06.9]} 47. Rc6+ {[%clk 0:00:10.6]} 47... Ke7 {[%clk 0:00:07.3]} 48. Kd5
{[%clk 0:00:10.8]} 48... g5 {[%clk 0:00:05.2]} 49. Rc8 {[%clk 0:00:09.7]} 49...
h5 {[%clk 0:00:05.2]} 50. Rg8 {[%clk 0:00:10]} 50... Kf6 {[%clk 0:00:04.4]} 51.
Rf8 {[%clk 0:00:10]} 51... Be3 {[%clk 0:00:05]} 52. Rg8 {[%clk 0:00:09.9]} 52...
Bf4 {[%clk 0:00:05.4]} 53. Kc4 {[%clk 0:00:09.9]} 53... h4 {[%clk 0:00:05.7]}
54. Kb5 {[%clk 0:00:10.3]} 54... Be3 {[%clk 0:00:06.4]} 55. Ka6 {[%clk
0:00:10.5]} 55... Ne5 {[%clk 0:00:07]} 56. Re8 {[%clk 0:00:10.4]} 56... Kg6
{[%clk 0:00:07.6]} 57. Rxe5 {[%clk 0:00:10.5]} 57... Bf4 {[%clk 0:00:07.8]} 58.
Re4 {[%clk 0:00:10.3]} 58... Kf5 {[%clk 0:00:08.1]} 59. Rc4 {[%clk 0:00:10.7]}
59... g4 {[%clk 0:00:08.3]} 60. hxg4+ {[%clk 0:00:11.2]} 60... Kxg4 {[%clk
0:00:09.2]} 61. Rc2 {[%clk 0:00:09.6]} 61... h3 {[%clk 0:00:09]} 62. Kb5 {[%clk
0:00:07.1]} 62... Be3 {[%clk 0:00:09.3]} 63. Kc4 {[%clk 0:00:06.9]} 63... Kg3
{[%clk 0:00:09.6]} 64. Kd3 {[%clk 0:00:07.1]} 64... Bf2 {[%clk 0:00:10.1]} 65.
Ke2 {[%clk 0:00:06.2]} 65... h2 {[%clk 0:00:10.2]} 66. Rc3+ {[%clk 0:00:06.7]}
66... Kg2 {[%clk 0:00:10.3]} 67. Rc1 {[%clk 0:00:06.7]} 67... a5 {[%clk
0:00:09.1]} 68. Ra1 {[%clk 0:00:05.5]} 68... a4 {[%clk 0:00:09.3]} 69. Rxa4
{[%clk 0:00:05.9]} 69... h1=Q {[%clk 0:00:09.2]} 70. Rg4+ {[%clk 0:00:06.6]}
70... Bg3 {[%clk 0:00:09.8]} 71. Re4 {[%clk 0:00:06.3]} 71... Qf1+ {[%clk
0:00:10.1]} 72. Ke3 {[%clk 0:00:06.5]} 72... Qf3+ {[%clk 0:00:10.5]} 73. Kd4
{[%clk 0:00:07.4]} 73... Bf2+ {[%clk 0:00:10.9]} 74. Kd5 {[%clk 0:00:07.8]}
74... Kg3 {[%clk 0:00:11.4]} 75. Ke5 {[%clk 0:00:08.3]} 75... Be1 {[%clk
0:00:11]} 76. Rxe1 {[%clk 0:00:08]} 76... Qc3+ {[%clk 0:00:10.7]} 77. Ke4 {[%clk
0:00:08]} 77... Qxe1+ {[%clk 0:00:11.6]} 78. Kf5 {[%clk 0:00:08.7]} 78... Qf2+
{[%clk 0:00:12.3]} 0-1